fUSD/lending_fUSD_20260305
["ID","MTS","AMOUNT","RATE_DAILY","PERIOD"]
[407693749,1772683846508,-544.60854126,0.00046575,120]
[407693750,1772683846519,-500.0,0.00046575,120]
[407693751,1772683846528,-521.05752517,0.00046575,120]
[407693752,1772683846537,-380.8816621,0.00046575,120]
[407693753,1772683846547,-570.2071881,0.00046575,120]
[407693754,1772683846556,-579.157561,0.00046575,120]
[407693755,1772683846566,-500.0,0.00046575,120]
[407693756,1772683846575,-500.0,0.00046575,120]
[407693757,1772683846584,-639.0236758,0.00046575,120]
[407693758,1772683846593,-500.0,0.00046575,120]
[407693759,1772683846603,-500.0,0.00046575,120]
[407693760,1772683846613,-196.75370274,0.00046575,120]
[407693761,1772683846622,-378.63582462,0.00046575,120]
[407693762,1772683846633,-500.0,0.00046575,120]
[407693763,1772683846643,-500.0,0.00046575,120]
[407693764,1772683846654,-545.63,0.00046575,120]
[407693765,1772683846664,-545.63,0.00046575,120]
[407693766,1772683846674,-500.0,0.00046575,120]
[407693767,1772683846683,-500.0,0.00046575,120]
[407693768,1772683846693,-306.51004933,0.00046575,120]
[407693769,1772683846702,-151.0,0.00046575,120]
[407693770,1772683846712,-500.0,0.00046575,120]
[407693771,1772683846721,-500.0,0.00046575,120]
[407693772,1772683846731,-500.0,0.00046575,120]
[407693773,1772683846740,-592.85599245,0.00046575,120]
[407693774,1772683846750,-2377.31,0.00046575,120]
[407693775,1772683846759,-2377.31,0.00046575,120]
[407693776,1772683846769,-258.48123667,0.00046575,120]
[407693777,1772683846779,-500.0,0.00046575,120]
[407693778,1772683846788,-515.41981526,0.00046575,120]
[407693779,1772683846797,-178.03461836,0.00046575,120]
[407693780,1772683846807,-632.6661766,0.00046575,120]
[407693781,1772683846816,-807.06,0.00046575,120]
[407693782,1772683846825,-807.06,0.00046575,120]
[407693783,1772683846835,-205.39263969,0.00046575,120]
[407693784,1772683846844,-500.0,0.00046575,120]
[407693785,1772683846853,-500.0,0.00046575,120]
[407693786,1772683846863,-500.0,0.00046575,120]
[407693787,1772683846872,-500.0,0.00046575,120]
[407693788,1772683846882,-502.4976246,0.00046575,120]
[407693789,1772683846892,-264.97884595,0.00046575,120]
[407693790,1772683846902,-500.0,0.00046575,120]
[407693791,1772683846911,-260.89542499,0.00046575,120]
[407693792,1772683846922,-500.0,0.00046575,120]
[407693793,1772683846932,-500.0,0.00046575,120]
[407693794,1772683846941,-504.58522581,0.00046575,120]
[407693795,1772683846951,-500.0,0.00046575,120]
[407693796,1772683846960,-500.0,0.00046575,120]
[407693797,1772683846973,-213.13925905,0.00046575,120]
[407693798,1772683846983,-361.15543098,0.00046575,120]
[407693799,1772683846993,-947.18,0.00046575,120]
[407693800,1772683847002,-947.18,0.00046575,120]
[407693801,1772683847012,-947.18,0.00046575,120]
[407693802,1772683847022,-500.0,0.00046575,120]
[407693803,1772683847032,-500.0,0.00046575,120]
[407693804,1772683847042,-500.0,0.00046575,120]
[407693805,1772683847051,-500.0,0.00046575,120]
[407693806,1772683847062,-500.0,0.00046575,16]
[407693807,1772683847072,-519.06518631,0.00046575,120]
[407693808,1772683847083,-428.15551582,0.00046575,16]
[407693809,1772683847094,-500.0,0.00046575,120]
[407693810,1772683847106,-171.6097247,0.00046575,120]
[407693811,1772683847118,-500.0,0.00046575,120]
[407693812,1772683847129,-500.0,0.00046575,120]
[407693813,1772683847139,-510.94844733,0.00046575,120]
[407693814,1772683847152,-588.00942699,0.00046575,120]
[407693815,1772683847164,-151.0,0.00046575,15]
[407693816,1772683847175,-151.0,0.00046575,15]
[407693817,1772683847186,-192.63074305,0.00046575,120]
[407693818,1772683847197,-151.0,0.00046575,15]
[407693819,1772683847382,-151.0,0.00046575,15]
[407693820,1772683847393,-500.0,0.00046575,120]
[407693821,1772683847403,-500.0,0.00046575,120]
[407693822,1772683847412,-151.0,0.00046575,120]
[407693823,1772683847422,-539.86994746,0.00046575,120]
[407693824,1772683847432,-151.0,0.00046575,120]
[407693825,1772683847441,-500.0,0.00046575,120]
[407693826,1772683847451,-500.0,0.00046575,120]
[407693827,1772683847460,-637.68740017,0.00046575,120]
[407693828,1772683847469,-500.0,0.00046575,120]
[407693829,1772683847479,-240.04292985,0.00046575,120]
[407693830,1772683847488,-500.0,0.00046575,120]
[407693831,1772683847498,-514.22610303,0.00046575,120]
[407693832,1772683847507,-500.0,0.00046575,120]
[407693833,1772683847516,-500.0,0.00046575,120]
[407693834,1772683847525,-177.978194,0.00046575,14]
[407693835,1772683847534,-177.978194,0.00046575,14]
[407693836,1772683847544,-176.59217284,0.00046575,120]
[407693837,1772683847553,-151.0,0.00046575,120]
[407693838,1772683847562,-177.978194,0.00046575,14]
[407693839,1772683847571,-151.0,0.00046575,120]
[407693840,1772683847580,-177.978194,0.00046575,14]
[407693841,1772683847589,-215.99269844,0.00046575,120]
[407693842,1772683847599,-312.79120395,0.00046575,120]
[407693843,1772683847608,-177.978194,0.00046575,14]
[407693844,1772683847617,-177.978194,0.00046575,14]
[407693845,1772683847626,-151.0,0.00046575,120]
[407693846,1772683847635,-151.0,0.00046575,120]
[407693847,1772683847645,-177.978194,0.00046575,14]
[407693848,1772683847654,-413.56640025,0.00046575,120]
[407693849,1772683847666,-177.978194,0.00046575,14]
[407693850,1772683847678,-231.27678006,0.00046575,120]
[407693851,1772683847688,-151.0,0.00046575,120]
[407693852,1772683847697,-151.0,0.00046575,120]
[407693853,1772683847707,-500.0,0.00046575,120]
[407693854,1772683847716,-218.83748356,0.00046575,120]
[407693855,1772683847726,-316.82556421,0.00046575,120]
[407693856,1772683847736,-151.0,0.00046575,120]
[407693857,1772683847745,-151.0,0.00046575,120]
[407693858,1772683847755,-307.83991534,0.00046575,120]
[407693859,1772683847765,-500.0,0.00046575,120]
[407693860,1772683847774,-244.18662927,0.00046575,120]
[407693861,1772683847783,-500.0,0.00046575,120]
[407693862,1772683847793,-536.20205482,0.00046575,120]
[407693863,1772683847802,-258.8585102,0.00046575,120]
[407693864,1772683847811,-500.0,0.00046575,120]
[407693865,1772683847821,-500.0,0.00046575,120]
[407693866,1772683847831,-723.54523081,0.00046575,120]
[407693867,1772683847840,-500.0,0.00046575,120]
[407693868,1772683847850,-535.97998857,0.00046575,120]
[407693869,1772683847859,-500.0,0.00046575,120]
[407693870,1772683847868,-500.0,0.00046575,120]
[407693871,1772683847877,-2790.21,0.00046575,120]
[407693872,1772683847886,-2790.21,0.00046575,120]
[407693873,1772683847896,-215.34964898,0.00046575,120]
[407693874,1772683847905,-500.0,0.00046575,7]
[407693875,1772683847916,-500.0,0.00046575,7]
[407693876,1772683847925,-500.0,0.00046575,120]
[407693877,1772683847935,-500.0,0.00046575,7]
[407693878,1772683847944,-500.0,0.00046575,120]
[407693879,1772683847953,-500.0,0.00046575,7]
[407693880,1772683847963,-513.73587961,0.00046575,120]
[407693881,1772683847972,-500.0,0.00046575,120]
[407693882,1772683847981,-500.0,0.00046575,7]
[407693883,1772683847990,-301.58354983,0.00046575,120]
[407693884,1772683848000,-1765.53,0.00046575,120]
[407693885,1772683848009,-1765.53,0.00046575,120]
[407693886,1772683848018,-1765.53,0.00046575,120]
[407693887,1772683848028,-500.0,0.00046575,120]
[407693888,1772683848037,-500.0,0.00046575,120]
[407693889,1772683848047,-182.17873268,0.00046575,120]
[407693890,1772683848057,-500.0,0.00046575,120]
[407693891,1772683848070,-500.0,0.00046575,120]
[407693892,1772683848080,-500.0,0.00046575,120]
[407693893,1772683848089,-500.0,0.00046575,120]
[407693894,1772683848098,-500.0,0.00046575,120]
[407693895,1772683848107,-151.0,0.00046575,120]
[407693896,1772683848116,-151.0,0.00046575,120]
[407693897,1772683848125,-528.0871791,0.00046575,120]
[407693898,1772683848134,-488.88302155,0.00046575,120]
[407693899,1772683848144,-865.09,0.00046575,120]
[407693900,1772683848153,-865.09,0.00046575,120]
[407693901,1772683848163,-151.0,0.00046575,120]
[407693902,1772683848172,-865.09,0.00046575,120]
[407693903,1772683848182,-151.0,0.00046575,120]
[407693904,1772683848191,-500.0,0.00046575,60]
[407693905,1772683848200,-500.0,0.00046575,60]
[407693906,1772683848209,-500.0,0.00046575,120]
[407693907,1772683848220,-294.834696,0.00046575,120]
[407693908,1772683848229,-500.0,0.00046575,120]
[407693909,1772683848238,-193.84207234,0.00046575,120]
[407693910,1772683848248,-500.0,0.00046575,120]
[407693911,1772683848257,-500.0,0.00046575,120]
[407693912,1772683848266,-500.0,0.00046575,120]
[407693913,1772683848275,-500.0,0.00046575,120]
[407693914,1772683848284,-500.0,0.00046575,120]
[407693915,1772683848293,-334.44581982,0.00046575,120]
[407693916,1772683848302,-585.887713,0.00046575,120]
[407693917,1772683848311,-524.82,0.00046575,120]
[407693918,1772683848324,-296.49972531,0.00046575,120]
[407693919,1772683848333,-524.82,0.00046575,120]
[407693920,1772683848341,-151.0,0.00046575,120]
[407693921,1772683848350,-524.82,0.00046575,120]
[407693922,1772683848361,-500.0,0.00046575,120]
[407693923,1772683848371,-151.0,0.00046575,120]
[407693924,1772683848380,-500.0,0.00046575,120]
[407693925,1772683848389,-500.0,0.00046575,120]
[407693926,1772683848400,-270.34918973,0.00046575,120]
[407693927,1772683848409,-4719.38,0.00046575,120]
[407693928,1772683848418,-4719.38,0.00046575,120]
[407693929,1772683848427,-1799.05,0.00046575,120]
[407693930,1772683848437,-1799.05,0.00046575,120]
[407693931,1772683848446,-1799.05,0.00046575,120]
[407693932,1772683848459,-849.38,0.00046575,120]
[407693933,1772683848468,-849.38,0.00046575,120]
[407693934,1772683848477,-849.38,0.00046575,120]
[407693935,1772683848486,-500.0,0.00046575,120]
[407693936,1772683848495,-500.0,0.00046575,120]
[407693937,1772683848504,-500.0,0.00046575,120]
[407693938,1772683848513,-155.48261629,0.00046575,120]
[407693939,1772683848523,-500.0,0.00046575,120]
[407693940,1772683848531,-223.0884493,0.00046575,120]
[407693941,1772683848540,-1259.48,0.00046575,120]
[407693942,1772683848550,-1259.48,0.00046575,120]
[407693943,1772683848559,-1259.48,0.00046575,120]
[407693944,1772683848568,-500.0,0.00046575,120]
[407693945,1772683848577,-500.0,0.00046575,120]
[407693946,1772683848586,-203.03288747,0.00046575,120]
[407693947,1772683848595,-500.0,0.00046575,120]
[407693948,1772683848604,-500.0,0.00046575,120]
[407693949,1772683848613,-1287.39,0.00046575,120]
[407693950,1772683848622,-609.8,0.00046575,120]
[407693951,1772683848632,-1287.39,0.00046575,120]
[407693952,1772683848641,-609.8,0.00046575,120]
[407693953,1772683848650,-1287.39,0.00046575,120]
[407693954,1772683848659,-609.8,0.00046575,120]
[407693955,1772683848669,-500.0,0.00046575,120]
[407693956,1772683848678,-500.0,0.00046575,120]
[407693957,1772683848687,-605.93805069,0.00046575,120]
[407693958,1772683848696,-239.33040291,0.00046575,120]
[407693959,1772683848705,-500.0,0.00046575,120]
[407693960,1772683848714,-553.31773973,0.00046575,120]
[407693961,1772683848724,-648.24219437,0.00046575,120]
[407693962,1772683848733,-503.47930017,0.00046575,120]
[407693963,1772683848742,-954.46,0.00046575,120]
[407693964,1772683848751,-954.46,0.00046575,120]
[407693965,1772683848760,-201.12226128,0.00046575,120]
[407693966,1772683848770,-151.0,0.00046575,120]
[407693967,1772683848779,-954.46,0.00046575,120]
[407693968,1772683848788,-500.0,0.00046575,120]
[407693969,1772683848797,-151.0,0.00046575,120]
[407693970,1772683848806,-500.0,0.00046575,120]
[407693971,1772683848815,-538.31941168,0.00046575,120]
[407693972,1772683848824,-500.0,0.00046575,120]
[407693973,1772683848833,-151.0,0.00046575,120]
[407693974,1772683848845,-151.0,0.00046575,120]
[407693975,1772683848854,-256.99715386,0.00046575,120]
[407693976,1772683848864,-309.66241797,0.00046575,120]
[407693977,1772683848872,-500.0,0.00046575,120]
[407693978,1772683848882,-350.11391423,0.00046575,120]
[407693979,1772683848891,-500.0,0.00046575,120]
[407693980,1772683848900,-500.0,0.00046575,120]
[407693981,1772683848909,-500.0,0.00046575,120]
[407693982,1772683848920,-634.46633506,0.00046575,120]
[407693983,1772683848929,-548.13,0.00046575,120]
[407693984,1772683848938,-548.13,0.00046575,120]
[407693985,1772683848948,-500.0,0.00046575,120]
[407693986,1772683848957,-353.81206191,0.00046575,120]
[407693987,1772683848967,-500.0,0.00046575,120]
[407693988,1772683848976,-224.44924408,0.00046575,120]
[407693989,1772683848985,-500.0,0.00046575,120]
[407693990,1772683848994,-500.0,0.00046575,120]
[407693991,1772683849005,-152.91662239,0.00046575,120]
[407693992,1772683849014,-500.0,0.00046575,120]
[407693993,1772683849023,-500.0,0.00046575,120]
[407693994,1772683849032,-500.0,0.00046575,120]
[407693995,1772683849042,-199.90693994,0.00046575,60]
[407693996,1772683849051,-213.01201046,0.00046575,120]
[407693997,1772683849060,-955.25,0.00046575,120]
[407693998,1772683849069,-955.25,0.00046575,120]
[407693999,1772683849078,-211.88446343,0.00046575,120]
[407694000,1772683849087,-500.0,0.00046575,120]
[407694001,1772683849096,-500.0,0.00046575,120]
[407694002,1772683849109,-500.0,0.00046575,120]
[407694003,1772683849118,-500.0,0.00046575,120]
[407694004,1772683849127,-500.0,0.00046575,120]
[407694005,1772683849136,-500.0,0.00046575,120]
[407694006,1772683849145,-205.47593078,0.00046575,120]
[407694007,1772683849154,-220.60144883,0.00046575,120]
[407694008,1772683849163,-500.0,0.00046575,120]
[407694009,1772683849172,-259.2201174,0.00046575,120]
[407694010,1772683849181,-410.32905673,0.00046575,120]
[407694011,1772683849190,-566.30509216,0.00046575,120]
[407694012,1772683849199,-165.11047544,0.00046575,120]
[407694013,1772683849208,-222.75347119,0.00046575,120]
[407694014,1772683849226,-166.90341213,0.00046575,120]
[407694015,1772683849235,-318.71653848,0.00046575,120]
[407694016,1772683849244,-500.0,0.00046575,120]
[407694017,1772683849253,-626.1166,0.00046575,120]
[407694018,1772683849263,-500.0,0.00046575,120]
[407694019,1772683849272,-500.0,0.00046575,120]
[407694020,1772683849281,-172.66872392,0.00046575,120]
[407694021,1772683849290,-500.0,0.00046575,120]
[407694022,1772683849299,-219.22471715,0.00046575,120]
[407694023,1772683849309,-1021.77,0.00046575,120]
[407694024,1772683849322,-1021.77,0.00046575,120]
[407694025,1772683849331,-500.0,0.00046575,120]
[407694026,1772683849341,-347.71452918,0.00046575,120]
[407694027,1772683849353,-293.602053,0.00046575,120]
[407694028,1772683849362,-153.30903465,0.00046575,120]
[407694029,1772683849371,-151.0,0.00046575,7]
[407694030,1772683849380,-151.0,0.00046575,7]
[407694031,1772683849391,-269.817827,0.00046575,120]
[407694032,1772683849400,-509.22235917,0.00046575,120]
[407694033,1772683849409,-320.55383219,0.00046575,120]
[407694034,1772683849420,-500.0,0.00046575,120]
[407694035,1772683849429,-387.87436751,0.00046575,120]
[407694036,1772683849438,-500.0,0.00046575,120]
[407694037,1772683849447,-153.1249001,0.00046575,120]
[407694038,1772683849456,-500.0,0.00046575,120]
[407694039,1772683849466,-500.0,0.00046575,120]
[407694040,1772683849475,-500.0,0.00046575,120]
[407694041,1772683849484,-519.96484527,0.00046575,120]
[407694042,1772683849494,-500.0,0.00046575,120]
[407694043,1772683849504,-216.78372155,0.00046575,120]
[407694044,1772683849513,-167.334348,0.00046575,120]
[407694045,1772683849524,-500.0,0.00046575,120]
[407694046,1772683849536,-171.45014821,0.00046575,120]
[407694047,1772683849546,-383.85584333,0.00046575,120]
[407694048,1772683849556,-500.0,0.00046575,7]
[407694049,1772683849566,-151.0,0.00046575,120]
[407694050,1772683849577,-500.0,0.00046575,7]
[407694051,1772683849588,-500.0,0.00046575,120]
[407694052,1772683849597,-151.0,0.00046575,120]
[407694053,1772683849606,-500.0,0.00046575,120]
[407694054,1772683849615,-500.0,0.00046575,120]
[407694055,1772683849624,-569.90205382,0.00046575,120]
[407694056,1772683849633,-624.51,0.00046575,120]
[407694057,1772683849642,-624.51,0.00046575,120]
[407694058,1772683849651,-582.04718238,0.00046575,120]
[407694059,1772683849660,-500.0,0.00046575,120]
[407694060,1772683849670,-500.0,0.00046575,120]
[407694061,1772683849679,-500.0,0.00046575,120]
[407694062,1772683849688,-233.83818405,0.00046575,120]
[407694063,1772683849698,-500.0,0.00046575,120]
[407694064,1772683849707,-500.0,0.00046575,120]
[407694065,1772683849716,-500.0,0.00046575,120]
[407694066,1772683849725,-500.0,0.00046575,120]
[407694067,1772683849734,-500.0,0.00046575,120]
[407694068,1772683849743,-500.0,0.00046575,120]
[407694069,1772683849752,-500.0,0.00046575,2]
[407694070,1772683849761,-499.1998,0.00046575,2]
[407694071,1772683849770,-250.67597267,0.00046575,120]
[407694072,1772683849779,-500.0,0.00046575,120]
[407694073,1772683849788,-500.0,0.00046575,120]
[407694074,1772683849797,-500.0,0.00046575,120]
[407694075,1772683849806,-500.0,0.00046575,120]
[407694076,1772683849815,-500.0,0.00046575,120]
[407694077,1772683849824,-530.33850488,0.00046575,120]
[407694078,1772683849833,-500.0,0.00046575,120]
[407694079,1772683849842,-213.5395697,0.00046575,120]
[407694080,1772683849851,-500.0,0.00046575,120]
[407694081,1772683849860,-364.75634784,0.00046575,120]
[407694082,1772683849870,-1108.96,0.00046575,120]
[407694083,1772683849879,-1108.96,0.00046575,120]
[407694084,1772683849888,-500.0,0.00046575,120]
[407694085,1772683849897,-1108.96,0.00046575,120]
[407694086,1772683849906,-500.0,0.00046575,120]
[407694087,1772683849916,-1108.96,0.00046575,120]
[407694088,1772683849925,-314.62438937,0.00046575,120]
[407694089,1772683849934,-513.21932312,0.00046575,120]
[407694090,1772683849943,-642.85535721,0.00046575,120]
[407694091,1772683849951,-523.63846674,0.00046575,120]
[407694092,1772683849961,-1500.577417,0.00046575,120]
[407694093,1772683849970,-269.97943741,0.00046575,120]
[407694094,1772683849979,-1500.577417,0.00046575,120]
[407694095,1772683849988,-246.893838,0.00046575,120]
[407694096,1772683849997,-500.0,0.00046575,120]
[407694097,1772683850007,-1500.577417,0.00046575,120]
[407694098,1772683850017,-508.8053566,0.00046575,120]
[407694099,1772683850026,-500.0,0.00046575,120]
[407694100,1772683850036,-1500.577417,0.00046575,120]
[407694101,1772683850045,-500.0,0.00046575,120]
[407694102,1772683850055,-6130.35197608,0.00046576,15]
[407694103,1772683850064,-2429.74038908,0.00046576,2]
[407694104,1772683850073,-195.35186192,0.00046576,2]
[407694105,1772683850083,-796.36683965,0.00046576,2]
[407694106,1772683850092,-1857.90690988,0.00046576,2]
[407694107,1772683850101,-1147.43,0.00046587,2]
[407694108,1772683850111,-150.0,0.00046597,14]
[407694109,1772683850120,-506.06317241,0.00046605,2]
[407694110,1772683850129,-150.0,0.00046627,14]
[407694111,1772683850138,-1108.96,0.00046649,120]
[407694112,1772683850147,-554.42947513,0.0004665,120]
[407694113,1772683850157,-490.6461524,0.0004665,120]
[407694114,1772683850166,-633.81535346,0.0004665,120]
[407694115,1772683850176,-500.0,0.0004665,120]
[407694116,1772683850186,-500.0,0.0004665,120]
[407694117,1772683850195,-507.21218574,0.0004665,120]
[407694118,1772683850205,-500.0,0.0004665,120]
[407694119,1772683850213,-511.1742621,0.0004665,120]
[407694120,1772683850222,-500.0,0.0004665,120]
[407694121,1772683850232,-517.65403658,0.0004665,120]
[407694122,1772683850242,-499.37178442,0.0004665,120]
[407694123,1772683850251,-500.0,0.0004665,120]
[407694124,1772683850260,-500.0,0.0004665,120]
[407694125,1772683850269,-500.0,0.0004665,120]
[407694126,1772683850278,-516.65178217,0.0004665,60]
[407694127,1772683850287,-500.0,0.0004665,120]
[407694128,1772683850297,-500.0,0.0004665,120]
[407694129,1772683850306,-500.0,0.0004665,120]
[407694130,1772683850316,-500.0,0.0004665,120]
[407694131,1772683850328,-500.0,0.0004665,120]
[407694132,1772683850337,-500.0,0.0004665,120]
[407694133,1772683850347,-500.0,0.0004665,120]
[407694134,1772683850355,-500.0,0.0004665,120]
[407694135,1772683850366,-500.0,0.0004665,120]
[407694136,1772683850386,-500.0,0.0004665,120]
[407694137,1772683850396,-500.0,0.0004665,120]
[407694138,1772683850408,-500.0,0.0004665,120]
[407694139,1772683850420,-637.50428922,0.0004665,120]
[407694140,1772683850429,-500.0,0.0004665,120]
[407694141,1772683850439,-500.0,0.0004665,120]
[407694142,1772683850448,-500.0,0.0004665,120]
[407694143,1772683850458,-500.0,0.0004665,120]
[407694144,1772683850466,-505.00363347,0.0004665,120]
[407694145,1772683850476,-500.0,0.0004665,120]
[407694146,1772683850485,-500.0,0.0004665,120]
[407694147,1772683850495,-500.0,0.0004665,60]
[407694148,1772683850504,-500.0,0.0004665,120]
[407694149,1772683850514,-500.0,0.0004665,60]
[407694150,1772683850532,-546.7919754,0.0004665,120]
[407694151,1772683850549,-625.78,0.0004665,120]
[407694152,1772683850560,-625.78,0.0004665,120]
[407694153,1772683850570,-625.78,0.0004665,120]
[407694154,1772683850580,-625.78,0.0004665,120]
[407694155,1772683850590,-625.78,0.0004665,120]
[407694156,1772683850599,-625.78,0.0004665,120]
[407694157,1772683850609,-625.78,0.0004665,120]
[407694158,1772683850618,-625.78,0.0004665,120]
[407694159,1772683850627,-625.78,0.0004665,120]
[407694160,1772683850637,-625.78,0.0004665,120]
[407694161,1772683850647,-625.78,0.0004665,120]
[407694162,1772683850656,-625.78,0.0004665,120]
[407694163,1772683850665,-625.78,0.0004665,120]
[407694164,1772683850677,-625.78,0.0004665,120]
[407694165,1772683850686,-625.78,0.0004665,120]
[407694166,1772683850696,-625.78,0.0004665,120]
[407694167,1772683850706,-500.0,0.0004665,120]
[407694168,1772683850716,-625.78,0.0004665,120]
[407694169,1772683850725,-500.0,0.0004665,120]
[407694170,1772683850735,-625.78,0.0004665,120]
[407694171,1772683850745,-625.8707627,0.0004665,120]
[407694172,1772683850755,-500.0,0.0004665,120]
[407694173,1772683850764,-500.0,0.0004665,120]
[407694174,1772683850774,-500.0,0.0004665,120]
[407694175,1772683850783,-296.26900392,0.0004665,120]
[407694176,1772683850793,-500.0,0.0004665,120]
[407694177,1772683850802,-500.0,0.0004665,120]
[407694178,1772683850811,-500.0,0.0004665,120]
[407694179,1772683850820,-500.0,0.0004665,120]
[407694180,1772683850830,-500.0,0.0004665,120]
[407694181,1772683850839,-574.52817677,0.0004665,120]
[407694182,1772683850849,-500.0,0.0004665,120]
[407694183,1772683851058,-591.05094367,0.0004665,120]
[407694184,1772683851069,-500.0,0.0004665,120]
[407694185,1772683851078,-500.0,0.0004665,120]
[407694186,1772683851087,-500.0,0.0004665,120]
[407694187,1772683851096,-320.68658585,0.0004665,120]
[407694188,1772683851106,-500.0,0.0004665,120]
[407694189,1772683851116,-500.0,0.0004665,120]
[407694190,1772683851125,-500.0,0.0004665,120]
[407694191,1772683851134,-500.0,0.0004665,120]
[407694192,1772683851143,-506.32,0.0004665,120]
[407694193,1772683851152,-506.32,0.0004665,120]
[407694194,1772683851161,-500.0,0.0004665,120]
[407694195,1772683851170,-500.0,0.0004665,120]
[407694196,1772683851179,-500.0,0.0004665,120]
[407694197,1772683851189,-500.0,0.0004665,120]
[407694198,1772683851197,-500.0,0.0004665,120]
[407694199,1772683851207,-500.0,0.0004665,120]
[407694200,1772683851216,-500.0,0.0004665,120]
[407694201,1772683851225,-500.0,0.0004665,120]
[407694202,1772683851235,-500.0,0.0004665,120]
[407694203,1772683851244,-500.0,0.0004665,120]
[407694204,1772683851253,-500.0,0.0004665,120]
[407694205,1772683851262,-500.0,0.0004665,120]
[407694206,1772683851271,-500.0,0.0004665,120]
[407694207,1772683851280,-500.0,0.0004665,120]
[407694208,1772683851289,-500.0,0.0004665,120]
[407694209,1772683851298,-177.56319645,0.0004665,120]
[407694210,1772683851307,-538.47,0.0004665,120]
[407694211,1772683851319,-538.47,0.0004665,120]
[407694212,1772683851328,-523.58,0.0004665,120]
[407694213,1772683851337,-523.58,0.0004665,120]
[407694214,1772683851346,-523.58,0.0004665,120]
[407694215,1772683851356,-523.58,0.0004665,120]
[407694216,1772683851365,-523.58,0.0004665,120]
[407694217,1772683851375,-523.58,0.0004665,120]
[407694218,1772683851384,-523.58,0.0004665,120]
[407694219,1772683851393,-500.0,0.0004665,120]
[407694220,1772683851402,-523.58,0.0004665,120]
[407694221,1772683851411,-500.0,0.0004665,120]
[407694222,1772683851420,-523.58,0.0004665,120]
[407694223,1772683851429,-523.58,0.0004665,120]
[407694224,1772683851438,-500.0,0.0004665,120]
[407694225,1772683851447,-523.58,0.0004665,120]
[407694226,1772683851455,-500.0,0.0004665,120]
[407694227,1772683851464,-523.58,0.0004665,120]
[407694228,1772683851473,-500.0,0.0004665,120]
[407694229,1772683851482,-523.58,0.0004665,120]
[407694230,1772683851491,-500.0,0.0004665,120]
[407694231,1772683851500,-523.58,0.0004665,120]
[407694232,1772683851509,-500.0,0.0004665,120]
[407694233,1772683851518,-500.0,0.0004665,120]
[407694234,1772683851527,-523.58,0.0004665,120]
[407694235,1772683851536,-500.0,0.0004665,120]
[407694236,1772683851545,-523.58,0.0004665,120]
[407694237,1772683851554,-500.0,0.0004665,120]
[407694238,1772683851563,-523.58,0.0004665,120]
[407694239,1772683851572,-500.0,0.0004665,120]
[407694240,1772683851581,-523.58,0.0004665,120]
[407694241,1772683851590,-500.0,0.0004665,120]
[407694242,1772683851599,-875.93,0.0004665,5]
[407694243,1772683851608,-500.0,0.0004665,120]
[407694244,1772683851617,-523.65185191,0.0004665,120]
[407694245,1772683851626,-875.93,0.0004665,5]
[407694246,1772683851635,-569.25873842,0.0004665,120]
[407694247,1772683851643,-500.0,0.0004665,120]
[407694248,1772683851652,-500.0,0.0004665,120]